bitfinex-derivatives/quotes_BTCF0:USTF0_20260314
["timestamp","ask_amount","ask_price","bid_price","bid_amount"]
[1773480590823,0.0014,70714.0,70709.0,0.04242]
[1773480591023,0.0014,70713.0,70709.0,0.04242]
[1773480591920,0.005,70747.0,70718.0,0.00243055]
[1773480591921,0.02484158,70745.0,70718.0,0.00243055]
[1773480592123,0.02484158,70737.0,70712.0,0.16894767]
[1773480592321,0.02551844,70734.0,70715.0,0.042416]
[1773480592517,0.02551844,70730.0,70716.0,0.042416]
[1773480592823,0.0014,70729.0,70718.0,0.042415]
[1773480593018,0.042408,70731.0,70708.0,0.00243055]
[1773480593019,0.13043925,70749.0,70708.0,0.16894767]
[1773480593223,0.02551844,70742.0,70709.0,0.04382]
[1773480593425,0.001,70734.0,70728.0,0.042409]
[1773480593725,0.0014,70733.0,70728.0,0.042409]
[1773480593926,0.0014,70734.0,70730.0,0.042408]
[1773480594322,0.02751852,70735.0,70704.0,0.16894767]
[1773480594517,0.0014,70737.0,70734.0,0.042405]
[1773480594716,0.0014,70736.0,70734.0,0.042405]
[1773480594922,0.001,70729.0,70718.0,0.0014]
[1773480595122,0.0014,70736.0,70735.0,0.042405]
[1773480595823,0.02868343,70736.0,70730.0,0.042408]
[1773480596631,0.02868343,70736.0,70729.0,0.042408]
[1773480599025,0.02738644,70750.0,70738.0,0.042403]
[1773480599231,0.02738644,70748.0,70738.0,0.042403]
[1773480599435,0.02741645,70746.0,70737.0,0.042404]
[1773480599627,0.02741645,70744.0,70737.0,0.042404]
[1773480599824,0.0014,70743.0,70737.0,0.042404]
[1773480600843,0.02881528,70743.0,70718.0,0.0014]
[1773480601029,0.02881528,70743.0,70717.0,0.0014]
[1773480601229,0.07121528,70743.0,70727.0,0.042409]
[1773480601438,0.02776949,70740.0,70727.0,0.042409]
[1773480601823,0.02776949,70740.0,70728.0,0.042409]
[1773480602032,0.02776949,70740.0,70730.0,0.042408]
[1773480602435,0.02776949,70740.0,70731.0,0.042407]
[1773480603432,0.02776949,70740.0,70728.0,0.042409]
[1773480603643,0.02788818,70739.0,70713.0,0.0014]
[1773480603827,0.02788818,70739.0,70724.0,0.042412]
[1773480604030,0.02788818,70739.0,70725.0,0.042411]
[1773480606042,0.02788818,70739.0,70726.0,0.04241]
[1773480610142,0.02788818,70739.0,70710.0,0.0014]
[1773480610143,0.02788818,70739.0,70727.0,0.042409]
[1773480610939,0.042402,70740.0,70707.0,0.16795631]
[1773480610940,0.02787007,70738.0,70707.0,0.16795631]
[1773480611137,0.02787007,70733.0,70706.0,0.16795631]
[1773480611336,0.02787007,70731.0,70706.0,0.16795631]
[1773480611735,0.02787007,70731.0,70720.0,0.042414]
[1773480611932,0.02787007,70731.0,70721.0,0.042413]
[1773480612238,0.02787007,70731.0,70705.0,0.0014]
[1773480612438,0.02787007,70731.0,70706.0,0.003]
[1773480612940,0.02787007,70731.0,70722.0,0.042412]
[1773480613341,0.02787007,70731.0,70706.0,0.003]
[1773480613837,0.02787007,70731.0,70706.0,0.001]
[1773480614545,0.02787007,70731.0,70706.0,0.003]
[1773480615043,0.02787007,70731.0,70706.0,0.002]
[1773480615245,0.02787007,70731.0,70722.0,0.042412]
[1773480624147,0.02787007,70731.0,70722.0,1.042412]
[1773480627547,0.02787007,70731.0,70723.0,0.042412]
[1773480631254,0.0014,70730.0,70723.0,0.042412]
[1773480632654,0.02795969,70730.0,70723.0,0.042412]
[1773480643669,0.02795969,70730.0,70722.0,1.0]
[1773480643967,0.02504453,70727.0,70722.0,0.06434602]
[1773480644265,0.02504453,70727.0,70715.0,0.042417]
[1773480644470,0.02504453,70727.0,70712.0,0.042419]
[1773480645273,0.042412,70724.0,70712.0,0.042418]
[1773480645580,0.0014,70723.0,70712.0,0.042418]
[1773480648279,0.0014,70723.0,70710.0,0.042419]
[1773480648482,0.0014,70723.0,70711.0,0.042419]
[1773480648775,0.0014,70723.0,70712.0,0.042418]
[1773480656287,0.0014,70723.0,70713.0,0.042418]
[1773480688005,0.0014,70723.0,70713.0,0.07444397]
[1773480690397,0.042414,70721.0,70709.0,0.04242]
[1773480690709,0.043812,70723.0,70710.0,0.04242]
[1773480690906,0.043812,70723.0,70710.0,0.07444597]
[1773480694017,0.15171725,70722.0,70710.0,0.04242]
[1773480696418,0.19413025,70722.0,70710.0,0.04242]
[1773480699724,0.03193934,70736.0,70711.0,0.03202597]
[1773480699915,0.0014,70735.0,70711.0,0.03202597]
[1773480700121,0.11394546,70730.0,70711.0,0.03202597]
[1773480700322,0.10146189,70730.0,70711.0,0.03202597]
[1773480700621,0.0014,70729.0,70711.0,0.03202597]
[1773480700812,0.0014,70729.0,70721.0,0.042413]
[1773480709921,0.31624,70742.0,70723.0,0.03032158]
[1773480710127,0.0014,70741.0,70723.0,0.03032158]
[1773480710323,0.07896194,70736.0,70723.0,0.03032158]
[1773480710522,0.0014,70735.0,70723.0,0.03032158]
[1773480710920,0.042405,70735.0,70722.0,0.042412]
[1773480711124,0.0014,70734.0,70722.0,0.042412]
[1773480711420,0.042406,70734.0,70722.0,0.042412]
[1773480711632,0.0014,70733.0,70722.0,0.042412]
[1773480712126,0.0014,70732.0,70722.0,0.042412]
[1773480713329,0.0024,70732.0,70722.0,0.042412]
[1773480715824,0.31624,70742.0,70726.0,0.04241]
[1773480716038,0.001,70732.0,70726.0,0.04241]
[1773480716221,0.0014,70731.0,70726.0,0.04241]
[1773480716728,0.0014,70730.0,70724.0,0.042411]
[1773480716926,0.0014,70729.0,70724.0,0.042411]
[1773480717127,0.0014,70728.0,70724.0,0.042411]
[1773480717334,0.0014,70727.0,70724.0,0.042411]
[1773480717523,0.042404,70737.0,70724.0,0.042411]
[1773480717826,0.0014,70731.0,70724.0,0.042411]
[1773480718027,0.0014,70730.0,70724.0,0.042411]
[1773480720437,0.358641,70742.0,70712.0,0.03095306]
[1773480720734,0.07239761,70735.0,70711.0,0.00959675]
[1773480721034,0.07239761,70735.0,70712.0,0.03095306]
[1773480721328,0.0014,70732.0,70712.0,0.03095306]
[1773480721927,0.0014,70732.0,70725.0,0.04241]
[1773480725733,0.0014,70734.0,70725.0,0.04241]
[1773480726936,0.0014,70731.0,70723.0,0.042412]
[1773480728029,0.0014,70731.0,70724.0,0.042411]
[1773480728633,0.0014,70731.0,70714.0,0.03095306]
[1773480728927,0.0014,70731.0,70722.0,0.042413]
[1773480729534,0.03192231,70732.0,70704.0,0.25401514]
[1773480729844,0.00249918,70730.0,70705.0,0.03095306]
[1773480730143,0.0014,70724.0,70705.0,0.03095306]
[1773480730342,0.0014,70723.0,70705.0,0.03095306]
[1773480731043,0.0014,70723.0,70717.0,0.042415]
[1773480734950,0.0014,70723.0,70718.0,0.042415]
[1773480737253,0.00074612,70723.0,70718.0,0.042415]
[1773480739756,0.00899788,70729.0,70721.0,0.042413]
[1773480739962,0.0028,70728.0,70721.0,0.042413]
[1773480740254,0.0014,70727.0,70721.0,0.042413]
[1773480740646,0.0014,70727.0,70719.0,0.042414]
[1773480743158,0.12770895,70741.0,70720.0,0.03144152]
[1773480743359,0.0014,70730.0,70720.0,0.03144152]
[1773480743660,0.0014,70729.0,70702.0,0.03144152]
[1773480743853,0.0014,70729.0,70717.0,0.042415]
[1773480744151,0.0014,70729.0,70714.0,0.03144152]
[1773480744353,0.0014,70728.0,70714.0,0.03144152]
[1773480744562,0.0014,70727.0,70714.0,0.03144152]
[1773480745057,0.0014,70726.0,70723.0,0.03144152]
[1773480745358,0.0014,70725.0,70723.0,0.03144152]
[1773480745557,0.0014,70724.0,70723.0,0.03144152]
[1773480746254,0.12792245,70741.0,70723.0,0.03144152]
[1773480746558,0.0028,70729.0,70723.0,0.03144152]
[1773480746760,0.0014,70728.0,70723.0,0.03144152]
[1773480746954,0.05320529,70735.0,70723.0,0.03144152]
[1773480747156,0.0014,70734.0,70723.0,0.03144152]
[1773480747655,0.0028,70728.0,70723.0,0.03144152]
[1773480747853,0.0014,70733.0,70723.0,0.03144152]
[1773480748054,0.05320529,70735.0,70723.0,0.03144152]
[1773480748255,0.0014,70734.0,70723.0,0.03144152]
[1773480748657,0.0014,70733.0,70723.0,0.03144152]
[1773480748853,0.0014,70733.0,70722.0,0.042412]
[1773480749053,0.042406,70733.0,70720.0,0.03715675]
[1773480749361,0.0014,70732.0,70720.0,0.03715675]
[1773480749564,0.042406,70733.0,70720.0,0.03715675]
[1773480749761,0.0014,70732.0,70720.0,0.03715675]
[1773480749955,0.0370018,70709.0,70677.0,0.31753282]
[1773480750154,0.0370018,70709.0,70662.0,0.002]
[1773480750155,0.042438,70680.0,70662.0,0.002]
[1773480750359,0.0014,70679.0,70665.0,0.042447]
[1773480750559,0.0014,70678.0,70664.0,0.042447]
[1773480750762,0.28203424,70677.0,70662.0,0.03144152]
[1773480750952,0.28203424,70676.0,70662.0,0.03144152]
[1773480751152,0.28203424,70675.0,70662.0,0.03144152]
[1773480751357,0.28203424,70674.0,70662.0,0.03144152]
[1773480751655,0.28203424,70673.0,70662.0,0.03144152]
[1773480751855,0.0014,70678.0,70662.0,0.03144152]
[1773480752065,0.28152722,70677.0,70662.0,0.03144152]
[1773480752263,0.28152722,70676.0,70662.0,0.042449]
[1773480752468,0.03047843,70674.0,70628.0,0.12872408]
[1773480752766,0.03047843,70672.0,70636.0,0.042464]
[1773480752957,0.042455,70652.0,70635.0,0.07390652]
[1773480753265,0.03047843,70655.0,70635.0,0.07390652]
[1773480753266,0.32953676,70651.0,70635.0,0.07390652]
[1773480753463,0.31861996,70650.0,70635.0,0.07390652]
[1773480753655,0.31861996,70649.0,70635.0,0.03144152]
[1773480753856,0.00014386,70648.0,70635.0,0.03144152]
[1773480754057,0.3186201,70647.0,70635.0,0.03144152]
[1773480754264,0.00014386,70648.0,70635.0,0.03144152]
[1773480754265,0.3186201,70646.0,70635.0,0.03144152]
[1773480754463,0.31877935,70645.0,70635.0,0.03144152]
[1773480754667,0.31877935,70645.0,70595.0,0.03144152]
[1773480754668,0.03047843,70630.0,70595.0,0.03144152]
[1773480754858,0.042471,70625.0,70595.0,0.03144152]
[1773480755056,0.3186201,70624.0,70608.0,0.042481]
[1773480755256,0.32112714,70624.0,70609.0,0.03144152]
[1773480755472,0.3186201,70623.0,70609.0,0.03144152]
[1773480755665,0.00144,70622.0,70609.0,0.03144152]
[1773480755975,0.3186201,70621.0,70609.0,0.03144152]
[1773480756271,0.00011926,70620.0,70609.0,0.03144152]
[1773480756470,0.31895055,70619.0,70609.0,0.001]
[1773480756763,0.31898611,70618.0,70609.0,0.001]
[1773480756964,0.00015925,70618.0,70609.0,0.001]
[1773480757170,0.31006459,70619.0,70609.0,0.001]
[1773480757364,0.31006459,70619.0,70606.0,0.042482]
[1773480757556,0.31006459,70619.0,70601.0,0.03144152]
[1773480758170,0.31006459,70619.0,70605.0,0.042483]
[1773480762271,0.31006459,70619.0,70607.0,0.042482]
[1773480762470,0.00144,70618.0,70607.0,0.042482]
[1773480763873,0.00144,70618.0,70601.0,0.03144152]
[1773480764172,0.31144,70641.0,70625.0,0.042471]
[1773480764379,0.3202314,70640.0,70623.0,0.03144152]
[1773480764573,0.3187914,70639.0,70623.0,0.03144152]
[1773480764776,0.3187914,70638.0,70623.0,0.03144152]
[1773480765074,0.00144,70640.0,70623.0,0.03144152]
[1773480765075,0.3187914,70637.0,70623.0,0.03144152]
[1773480765277,0.043902,70640.0,70624.0,0.042471]
[1773480765471,0.00144,70639.0,70630.0,0.042468]
[1773480765667,0.00144,70638.0,70630.0,0.03712862]
[1773480765873,0.00144,70637.0,70627.0,0.07391052]
[1773480766681,0.00144,70637.0,70627.0,0.06854958]
[1773480766974,0.120913,70643.0,70629.0,0.042469]
[1773480767170,0.00144,70642.0,70629.0,0.042469]
[1773480767868,0.00144,70642.0,70629.0,0.0371583]
[1773480768078,0.00144,70642.0,70629.0,0.02119819]
[1773480768279,0.00144,70642.0,70627.0,0.02074697]
[1773480768480,0.00144,70642.0,70627.0,0.01540764]
[1773480769075,0.00144,70642.0,70629.0,0.042469]
[1773480769271,0.00244,70642.0,70629.0,0.042469]
[1773480769777,0.001,70642.0,70627.0,0.01540764]
[1773480769973,0.00144,70641.0,70633.0,0.07971249]
[1773480770175,0.001,70642.0,70633.0,0.07971249]
[1773480770176,0.00144,70640.0,70633.0,0.07971249]
[1773480770376,0.00144,70639.0,70633.0,0.07971249]
[1773480770679,0.042457,70648.0,70634.0,0.03724649]
[1773480770981,0.32015724,70647.0,70633.0,0.042466]
[1773480771185,0.31871724,70646.0,70633.0,0.042466]
[1773480771484,0.32015724,70645.0,70633.0,0.042466]
[1773480771674,0.31871724,70644.0,70633.0,0.042466]
[1773480771874,0.31871724,70643.0,70633.0,0.042466]
[1773480772178,0.31871724,70642.0,70633.0,0.042466]
[1773480772478,0.00144,70641.0,70633.0,0.042466]
[1773480772781,0.00144,70640.0,70633.0,0.042466]
[1773480772981,0.00144,70639.0,70633.0,0.042466]
[1773480773277,0.00144,70638.0,70633.0,0.07911562]
[1773480773475,0.042457,70648.0,70633.0,0.07911562]
[1773480773675,0.00144,70647.0,70633.0,0.07911562]
[1773480774376,0.042457,70648.0,70633.0,0.07911562]
[1773480774682,0.00144,70647.0,70633.0,0.07911562]
[1773480775280,0.042457,70648.0,70633.0,0.07911562]
[1773480775482,0.00144,70647.0,70633.0,0.07911562]
[1773480776180,0.00144,70646.0,70633.0,0.07911562]
[1773480776783,0.31136,70652.0,70641.0,0.03664962]
[1773480776972,0.00144,70651.0,70622.0,0.03664962]
[1773480777177,0.00144,70650.0,70622.0,0.03664962]
[1773480777377,0.00144,70650.0,70624.0,0.03664962]
[1773480777578,0.00144,70650.0,70639.0,0.042462]
[1773480777778,0.00144,70649.0,70639.0,0.07911162]
[1773480778384,0.00144,70648.0,70637.0,0.042464]
[1773480779081,0.00144,70648.0,70634.0,0.03664962]
[1773480779975,0.00144,70648.0,70637.0,0.042464]
[1773480780872,0.04001528,70647.0,70622.0,0.03664962]
[1773480781079,0.042463,70639.0,70625.0,0.042471]
[1773480781281,0.00144,70638.0,70625.0,0.042471]
[1773480781784,0.00144,70638.0,70622.0,0.03664962]
[1773480782181,0.31136,70652.0,70621.0,0.03654454]
[1773480782182,0.31132,70642.0,70624.0,0.042471]
[1773480782387,0.00144,70641.0,70632.0,0.07911562]
[1773480782683,0.00144,70640.0,70632.0,0.07911562]
[1773480783382,0.042459,70646.0,70633.0,0.042466]
[1773480783588,0.00144,70645.0,70634.0,0.03664962]
[1773480784685,0.00144,70644.0,70634.0,0.03664962]
[1773480784986,0.001,70645.0,70633.0,0.042466]
[1773480785189,0.042457,70648.0,70634.0,0.01970836]
[1773480785380,0.001,70646.0,70635.0,0.03664962]
[1773480785581,0.29725407,70645.0,70635.0,0.07911462]
[1773480785780,0.29581407,70644.0,70635.0,0.07911462]
[1773480786083,0.29581407,70643.0,70635.0,0.07911462]
[1773480786288,0.29581407,70642.0,70635.0,0.07911462]
[1773480786485,0.29581407,70641.0,70635.0,0.07911462]
[1773480786685,0.29581407,70640.0,70635.0,0.07911462]
[1773480786880,0.09649005,70639.0,70635.0,0.07911462]
[1773480787084,0.00144,70638.0,70635.0,0.07911462]
[1773480787288,0.00144,70637.0,70635.0,0.07911462]
[1773480787484,0.042458,70648.0,70635.0,0.07911462]
[1773480787689,0.00849223,70645.0,70621.0,0.03654454]
[1773480787889,0.00849223,70645.0,70622.0,0.02945432]
[1773480788989,0.00849223,70645.0,70634.0,0.042465]
[1773480789690,0.00144,70644.0,70634.0,0.042465]
[1773480791891,0.00144,70644.0,70621.0,0.03654454]
[1773480792092,0.00144,70644.0,70633.0,0.042466]
[1773480792294,0.00144,70644.0,70628.0,0.00484745]
[1773480792982,0.00144,70644.0,70633.0,0.042466]
[1773480797595,0.00144,70644.0,70628.0,0.00484745]
[1773480797901,0.03607908,70657.0,70621.0,0.03654454]
[1773480797902,0.00144,70643.0,70621.0,0.03654454]
[1773480798090,0.00144,70642.0,70622.0,0.00881451]
[1773480798285,0.042455,70652.0,70639.0,0.042462]
[1773480798497,0.00432,70648.0,70621.0,0.03654454]
[1773480798790,0.27427505,70647.0,70638.0,0.042463]
[1773480798995,0.00432,70648.0,70638.0,0.042463]
[1773480798996,0.27427505,70646.0,70638.0,0.042463]
[1773480799189,0.27427505,70645.0,70638.0,0.042463]
[1773480799394,0.27571505,70644.0,70638.0,0.042463]
[1773480799597,0.27427505,70643.0,70638.0,0.042463]
[1773480801101,0.00144,70642.0,70638.0,0.042463]
[1773480801399,5e-08,70641.0,70638.0,0.042463]
[1773480801598,0.03774913,70650.0,70642.0,0.04246]
[1773480801795,0.00144,70649.0,70642.0,0.04246]
[1773480803701,0.00144,70649.0,70631.0,0.01795267]
[1773480803901,0.04206913,70648.0,70621.0,0.03654454]
[1773480804100,0.04824145,70643.0,70631.0,0.042467]
[1773480804407,0.00144,70642.0,70632.0,0.042466]
[1773480804791,0.03918913,70642.0,70632.0,0.042466]
[1773480805304,0.00432,70641.0,70632.0,0.042466]
[1773480805502,0.05344971,70641.0,70628.0,0.042469]
[1773480805701,0.05344971,70641.0,70610.0,0.04248]
[1773480805702,0.04912971,70639.0,70610.0,0.04248]
[1773480805901,0.04912971,70637.0,70625.0,0.042471]
[1773480806300,0.00432,70635.0,70625.0,0.042471]
[1773480806501,0.00144,70634.0,70625.0,0.042471]
[1773480806793,0.0913962,70632.0,70619.0,0.042474]
[1773480806999,0.0489292,70632.0,70619.0,0.042474]
[1773480807805,0.0489292,70632.0,70620.0,0.042474]
[1773480808098,0.03774913,70631.0,70620.0,0.042474]
[1773480808302,0.03774913,70631.0,70618.0,0.042475]
[1773480808704,0.03774913,70631.0,70619.0,0.042474]
[1773480809807,0.03774913,70631.0,70620.0,0.042474]
[1773480810006,0.04206913,70631.0,70620.0,0.042474]
[1773480810204,0.04206913,70631.0,70622.0,0.042473]
[1773480812001,0.04206913,70631.0,70615.0,0.02423735]
[1773480812202,0.00144,70630.0,70605.0,0.02381313]
[1773480812407,0.00144,70630.0,70606.0,0.02342298]
[1773480812809,0.00144,70630.0,70601.0,0.042485]
[1773480812810,0.00144,70630.0,70622.0,0.042472]
[1773480813208,0.26449581,70629.0,70622.0,0.042472]
[1773480813408,0.00144,70630.0,70622.0,0.042472]
[1773480813600,0.24421148,70629.0,70622.0,0.042472]
[1773480813796,0.00144,70630.0,70622.0,0.042472]
[1773480813996,0.24421148,70629.0,70622.0,0.042472]
[1773480814206,0.00144,70630.0,70622.0,0.042472]
[1773480814405,0.24419186,70629.0,70622.0,0.042472]
[1773480814606,0.00144,70630.0,70622.0,0.042472]
[1773480814906,0.24419186,70629.0,70622.0,0.042472]
[1773480815099,0.00144,70630.0,70622.0,0.042472]
[1773480815301,0.24417383,70629.0,70622.0,0.042472]
[1773480815501,0.00144,70630.0,70622.0,0.042472]
[1773480815811,0.24417383,70629.0,70622.0,0.042472]
[1773480816004,0.24417383,70628.0,70622.0,0.042472]
[1773480816203,0.00144,70630.0,70622.0,0.042472]
[1773480816404,0.24415806,70629.0,70622.0,0.042472]
[1773480816605,0.24415806,70628.0,70622.0,0.042472]
[1773480816804,0.00144,70630.0,70622.0,0.042472]
[1773480817010,0.24415806,70629.0,70622.0,0.042472]
[1773480817216,0.24415806,70628.0,70622.0,0.042472]
[1773480817411,0.00144,70630.0,70622.0,0.042472]
[1773480817708,0.24414432,70629.0,70622.0,0.042472]
[1773480817908,0.24414432,70628.0,70622.0,0.042472]
[1773480818113,0.00144,70630.0,70622.0,0.042472]
[1773480818315,0.24413305,70629.0,70622.0,0.042472]
[1773480818507,0.24413305,70628.0,70622.0,0.042472]
[1773480818702,0.03774913,70629.0,70622.0,0.042472]
[1773480818913,0.24413305,70628.0,70622.0,0.042472]
[1773480819115,0.03774913,70629.0,70622.0,0.042472]
[1773480819312,0.24412365,70628.0,70622.0,0.042472]
[1773480819512,0.03774913,70629.0,70622.0,0.042472]
[1773480819714,0.24412365,70628.0,70622.0,0.042472]
[1773480820014,0.03774913,70629.0,70622.0,0.042472]
[1773480820214,0.24412365,70628.0,70622.0,0.042472]
[1773480820416,0.03774913,70629.0,70622.0,0.042472]
[1773480820613,0.2441162,70628.0,70622.0,0.042472]
[1773480820814,0.03774913,70629.0,70622.0,0.042472]
[1773480821008,0.2441162,70628.0,70622.0,0.042472]
[1773480821208,0.03774913,70629.0,70622.0,0.042472]
[1773480821506,0.24411051,70628.0,70622.0,0.042472]
[1773480821708,0.03774913,70629.0,70622.0,0.042472]
[1773480821906,0.24411051,70628.0,70622.0,0.042472]
[1773480822112,0.03774913,70629.0,70622.0,0.042472]
[1773480822309,0.24410652,70628.0,70622.0,0.042472]
[1773480822512,0.03774913,70629.0,70622.0,0.042472]
[1773480822704,0.24410652,70628.0,70622.0,0.042472]
[1773480822909,0.00144,70627.0,70622.0,0.042472]
[1773480823317,0.24410384,70626.0,70622.0,0.042472]
[1773480823517,0.24410384,70625.0,70622.0,0.042472]
[1773480823710,8.4e-07,70624.0,70622.0,0.042472]
[1773480823910,0.03918913,70627.0,70622.0,0.042472]
[1773480827320,0.03918913,70627.0,70620.0,0.042474]
[1773480828523,0.00144,70626.0,70621.0,0.042473]
[1773480833322,0.00144,70627.0,70608.0,0.00263986]
[1773480833531,0.00144,70626.0,70611.0,0.00253296]
[1773480833826,0.00144,70625.0,70611.0,0.00253296]
[1773480834028,0.00144,70624.0,70611.0,0.00253296]
[1773480834226,0.00576,70634.0,70624.0,0.042471]
[1773480834425,0.00144,70633.0,70624.0,0.042471]
[1773480834627,0.00144,70632.0,70624.0,0.042471]
[1773480835629,0.23227497,70631.0,70624.0,0.042471]
[1773480835825,0.23227497,70630.0,70624.0,0.042471]
[1773480836131,0.23227497,70629.0,70625.0,0.042471]
[1773480836322,0.23371497,70628.0,70625.0,0.042471]
[1773480836525,0.00144,70627.0,70625.0,0.042471]
[1773480836721,0.00144,70626.0,70625.0,0.042471]
[1773480837229,0.00144,70635.0,70625.0,0.042471]
[1773480837424,0.00576,70633.0,70625.0,0.042471]
[1773480837830,0.00144,70632.0,70625.0,0.042471]
[1773480841638,0.00144,70632.0,70623.0,0.042472]
[1773480841839,0.00288,70632.0,70623.0,0.042472]
[1773480845137,0.00144,70631.0,70620.0,0.00630022]
[1773480845639,0.00144,70632.0,70620.0,0.00630022]
[1773480845839,0.00144,70631.0,70620.0,0.00630022]
[1773480846036,0.00144,70631.0,70624.0,0.042472]
[1773480846336,0.00144,70630.0,70624.0,0.042472]
[1773480847334,0.00144,70630.0,70622.0,0.042472]
[1773480852549,0.00288,70630.0,70622.0,0.042472]
[1773480854540,0.00288,70630.0,70623.0,0.042472]
[1773480857046,0.00144,70629.0,70616.0,0.00663488]
[1773480857245,0.00144,70628.0,70607.0,0.00144]
[1773480857445,0.00144,70627.0,70607.0,0.00144]
[1773480857653,0.042464,70637.0,70607.0,0.12124]
[1773480857949,0.22063093,70636.0,70623.0,0.042472]
[1773480858151,0.00576,70631.0,70623.0,0.042472]
[1773480859554,0.00576,70631.0,70624.0,0.042471]
[1773480860052,0.00144,70630.0,70624.0,0.042471]
[1773480860545,0.00144,70629.0,70607.0,0.12124]
[1773480860749,0.042462,70640.0,70609.0,0.04248]
[1773480860951,0.22066474,70639.0,70609.0,0.04248]
[1773480861149,0.00576,70632.0,70609.0,0.04248]
[1773480861351,0.00144,70631.0,70609.0,0.04248]
[1773480861649,0.00144,70630.0,70628.0,0.042469]
[1773480861855,0.00144,70630.0,70626.0,0.04247]
[1773480863155,0.00144,70629.0,70627.0,0.042469]
[1773480863356,0.05219905,70641.0,70627.0,0.042469]
[1773480863357,0.00144,70628.0,70627.0,0.042469]
[1773480865359,0.042463,70639.0,70627.0,0.042469]
[1773480865562,0.00576,70631.0,70627.0,0.042469]
[1773480865760,0.00144,70630.0,70627.0,0.042469]
[1773480871363,0.042463,70638.0,70627.0,0.042469]
[1773480871563,0.00576,70630.0,70627.0,0.042469]
[1773480871764,0.00144,70629.0,70625.0,0.042471]
[1773480871959,0.042462,70640.0,70628.0,0.042469]
[1773480872165,0.22078361,70639.0,70628.0,0.042469]
[1773480872359,0.21934361,70638.0,70628.0,0.042469]
[1773480872665,0.21934361,70637.0,70629.0,0.042468]
[1773480872862,0.22078361,70636.0,70629.0,0.042468]
[1773480873063,0.22078361,70635.0,70629.0,0.042468]
[1773480873264,0.00144,70635.0,70629.0,0.042468]
[1773480873565,0.21997323,70634.0,70629.0,0.042468]
[1773480873766,0.21997323,70633.0,70629.0,0.042468]
[1773480873960,2.3e-07,70632.0,70629.0,0.042468]
[1773480874155,0.00144,70635.0,70629.0,0.042468]
[1773480874867,0.00144,70634.0,70629.0,0.042468]
[1773480875069,0.00144,70633.0,70629.0,0.042468]
[1773480877367,0.00144,70633.0,70606.0,0.25463209]
[1773480877368,0.05119999,70625.0,70605.0,0.01348498]
[1773480877564,0.042468,70630.0,70618.0,0.042475]
[1773480877865,0.05119999,70629.0,70616.0,0.042476]
[1773480878074,0.05119999,70627.0,70604.0,1.5]
[1773480878259,0.05263999,70626.0,70613.0,0.042478]
[1773480878762,0.05263999,70626.0,70614.0,0.042477]
[1773480882170,0.042469,70629.0,70610.0,0.01642009]
[1773480882371,0.00144,70628.0,70610.0,0.01642009]
[1773480882966,0.00144,70628.0,70616.0,0.042476]
[1773480883269,0.00144,70627.0,70616.0,0.042476]
[1773480883662,0.042469,70629.0,70616.0,0.042476]
[1773480883863,0.00144,70628.0,70616.0,0.042476]
[1773480884371,0.04222107,70629.0,70616.0,0.042476]
[1773480884571,0.04366107,70629.0,70616.0,0.042476]
[1773480885273,0.00144,70628.0,70616.0,0.042476]
[1773480885767,0.00144,70628.0,70613.0,0.01430854]
[1773480886067,0.00144,70631.0,70611.0,0.01305431]
[1773480887174,0.00144,70631.0,70618.0,0.042475]
[1773480888268,0.00144,70631.0,70619.0,0.042474]
[1773480888674,0.04954256,70629.0,70617.0,0.043916]
[1773480889176,0.04954256,70630.0,70617.0,0.00144]
[1773480889367,0.04954256,70628.0,70617.0,0.00144]
[1773480890475,0.042471,70626.0,70617.0,0.00144]
[1773480895985,0.04935547,70630.0,70610.0,0.04392]
[1773480896171,0.04935547,70628.0,70610.0,0.04392]
[1773480896481,0.04935547,70630.0,70612.0,0.042478]
[1773480896682,0.04935402,70628.0,70612.0,0.042478]
[1773480897478,0.00144,70631.0,70612.0,0.042478]
[1773480897687,0.2161365,70630.0,70612.0,0.042478]
[1773480897887,0.0493524,70628.0,70612.0,0.042478]
[1773480898971,0.00144,70631.0,70610.0,0.00144]
[1773480899187,0.042471,70626.0,70614.0,0.042477]
[1773480900086,0.04932877,70630.0,70612.0,0.042479]
[1773480900287,0.042471,70626.0,70613.0,0.042478]
[1773480900785,0.042471,70625.0,70613.0,0.042478]
[1773480910386,0.04932877,70628.0,70610.0,0.00144]
[1773480910684,0.04932877,70628.0,70616.0,0.042476]
[1773480911285,0.04932877,70628.0,70616.0,0.043916]
[1773480913385,0.21473111,70627.0,70616.0,0.043916]
[1773480913579,0.21473111,70626.0,70616.0,0.043916]
[1773480913786,0.21473111,70625.0,70616.0,0.043916]
[1773480914090,0.04932877,70628.0,70616.0,0.043916]
[1773480916696,0.04932877,70628.0,70616.0,0.00144]
[1773480916896,0.04932877,70628.0,70618.0,0.042475]
[1773480917097,0.043908,70630.0,70618.0,0.042475]
[1773480917291,0.25210052,70629.0,70618.0,0.042475]
[1773480917487,0.20963152,70628.0,70616.0,0.043916]
[1773480917796,0.043909,70629.0,70617.0,0.042476]
[1773480918098,0.2096313,70628.0,70617.0,0.042476]
[1773480918397,0.09331149,70629.0,70617.0,0.042476]
[1773480918595,0.20963164,70628.0,70617.0,0.042476]
[1773480918797,0.042469,70628.0,70617.0,0.042476]
[1773480919693,0.0611615,70649.0,70616.0,0.00144]
[1773480919993,0.042467,70632.0,70619.0,0.042474]
[1773480920190,0.20963173,70631.0,70619.0,0.042474]
[1773480920385,0.0919142,70632.0,70619.0,0.042474]
[1773480920785,0.042467,70632.0,70619.0,0.042474]
[1773480920989,0.04940014,70631.0,70619.0,0.042474]
[1773480921491,0.08185814,70648.0,70617.0,0.042476]
[1773480921799,0.2052623,70647.0,70619.0,0.0067263]
[1773480922101,0.2052623,70646.0,70619.0,0.0067263]
[1773480922301,0.00144,70647.0,70620.0,0.0067263]
[1773480922505,0.04900051,70647.0,70633.0,0.042466]
[1773480924005,0.09145851,70647.0,70633.0,0.042466]
[1773480925505,0.05010488,70646.0,70633.0,0.042466]
[1773480926099,0.05010488,70643.0,70632.0,0.00144]
[1773480926295,0.00144,70647.0,70614.0,0.31814764]
[1773480926500,0.05009472,70635.0,70621.0,0.042473]